[Event "*** Titled Tuesday 3|2 Blitz"]
[Site "Chess.com"]
[Date "2016.09.06"]
[Round "1"]
[White "FairChess_on_YouTube"]
[Black "Chakraborty-ARZ"]
[Result "1-0"]
[WhiteElo "2692"]
[BlackElo "2318"]
[TimeControl "180+2"]
[EndTime "17:03:15 PDT"]
[Termination "FairChess_on_YouTube won by checkmate"]

1. e4 {[%clk 0:02:59.5]} 1... e5 {[%clk 0:02:59.7]} 2. Nf3 {[%clk 0:03:00.1]}
2... Nc6 {[%clk 0:03:01.1]} 3. Bb5 {[%clk 0:03:00.9]} 3... a6 {[%clk 0:03:01.6]}
4. Ba4 {[%clk 0:03:01.6]} 4... Nf6 {[%clk 0:03:02.1]} 5. O-O {[%clk 0:03:01.1]}
5... b5 {[%clk 0:03:01]} 6. Bb3 {[%clk 0:03:01.5]} 6... Be7 {[%clk 0:02:59.4]}
7. d4 {[%clk 0:03:00.8]} 7... exd4 {[%clk 0:02:53.4]} 8. e5 {[%clk 0:02:55.1]}
8... Ne4 {[%clk 0:02:41.4]} 9. Bd5 {[%clk 0:02:49.6]} 9... Nc5 {[%clk
0:02:40.3]} 10. Nxd4 {[%clk 0:02:49]} 10... Bb7 {[%clk 0:02:37.3]} 11. Nf5
{[%clk 0:02:49.1]} 11... O-O {[%clk 0:02:36.3]} 12. Nc3 {[%clk 0:02:36.2]} 12...
Rb8 {[%clk 0:02:31.9]} 13. Qg4 {[%clk 0:02:26.8]} 13... g6 {[%clk 0:02:28.7]}
14. Re1 {[%clk 0:02:12.7]} 14... h5 {[%clk 0:01:47.4]} 15. Qxg6+ {[%clk
0:02:11.7]} 15... Kh8 {[%clk 0:01:46.9]} 16. Qg7# {[%clk 0:02:12.6]} 1-0

[Event "*** Titled Tuesday 3|2 Blitz"]
[Site "Chess.com"]
[Date "2016.09.06"]
[Round "1"]
[White "Bishops83"]
[Black "Amethystical"]
[Result "1-0"]
[WhiteElo "2247"]
[BlackElo "2540"]
[TimeControl "180+2"]
[EndTime "17:03:41 PDT"]
[Termination "Bishops83 won by resignation"]

1. e4 {[%clk 0:02:55.3]} 1... c5 {[%clk 0:03:01.2]} 2. Nc3 {[%clk 0:02:55.1]}
2... a6 {[%clk 0:03:02.3]} 3. g3 {[%clk 0:02:54.7]} 3... b5 {[%clk 0:03:03.6]}
4. Bg2 {[%clk 0:02:53.9]} 4... Bb7 {[%clk 0:03:05.3]} 5. d3 {[%clk 0:02:52.4]}
5... e6 {[%clk 0:03:06.6]} 6. Nh3 {[%clk 0:02:53.3]} 6... Nf6 {[%clk 0:03:07.8]}
7. O-O {[%clk 0:02:35.3]} 7... d5 {[%clk 0:03:02.2]} 8. exd5 {[%clk 0:02:32.5]}
8... Nxd5 {[%clk 0:03:03.5]} 9. Ne4 {[%clk 0:02:32.5]} 9... Be7 {[%clk
0:03:02.4]} 10. Qh5 {[%clk 0:02:27.2]} 10... O-O {[%clk 0:02:50.1]} 11. c4
{[%clk 0:02:12.6]} 11... f5 {[%clk 0:02:24.4]} 12. cxd5 {[%clk 0:01:54.3]} 12...
fxe4 {[%clk 0:02:25.3]} 13. Bxe4 {[%clk 0:01:51.8]} 13... Rf5 {[%clk 0:02:01.1]}
14. Bxf5 {[%clk 0:01:47.6]} 14... Qxd5 {[%clk 0:02:02.4]} 15. Qxh7+ {[%clk
0:01:38.9]} 15... Kf8 {[%clk 0:01:56.9]} 16. Be4 {[%clk 0:01:40]} 1-0

[Event "*** Titled Tuesday 3|2 Blitz"]
[Site "Chess.com"]
[Date "2016.09.06"]
[Round "1"]
[White "pKiLz5Rn9b"]
[Black "aNONoNonono"]
[Result "1-0"]
[WhiteElo "2470"]
[BlackElo "2120"]
[TimeControl "180+2"]
[EndTime "17:04:35 PDT"]
[Termination "pKiLz5Rn9b won by resignation"]

1. e4 {[%clk 0:03:01.9]} 1... c5 {[%clk 0:03:00.8]} 2. c3 {[%clk 0:03:02.9]}
2... Nf6 {[%clk 0:03:00.3]} 3. e5 {[%clk 0:03:04.3]} 3... Nd5 {[%clk 0:03:01.6]}
4. Nf3 {[%clk 0:03:05.9]} 4... e6 {[%clk 0:03:00.5]} 5. d4 {[%clk 0:03:06.4]}
5... cxd4 {[%clk 0:03:00.6]} 6. cxd4 {[%clk 0:03:08.3]} 6... d6 {[%clk
0:03:00.9]} 7. Bc4 {[%clk 0:03:09.9]} 7... Nc6 {[%clk 0:03:01.4]} 8. O-O {[%clk
0:03:11.1]} 8... Be7 {[%clk 0:03:02]} 9. Bd2 {[%clk 0:03:12.5]} 9... O-O {[%clk
0:03:02.4]} 10. Nc3 {[%clk 0:03:14]} 10... Nxc3 {[%clk 0:03:02.1]} 11. Bxc3
{[%clk 0:03:14.4]} 11... dxe5 {[%clk 0:03:02.5]} 12. dxe5 {[%clk 0:03:15.3]}
12... Nb4 {[%clk 0:03:03.6]} 13. Bxb4 {[%clk 0:03:04.1]} 13... Bxb4 {[%clk
0:03:04.1]} 14. Qe2 {[%clk 0:03:02.5]} 14... Qe7 {[%clk 0:02:51.9]} 15. Bd3
{[%clk 0:02:57.3]} 15... g6 {[%clk 0:02:51.2]} 16. a3 {[%clk 0:02:51.4]} 16...
Ba5 {[%clk 0:02:50.5]} 17. b4 {[%clk 0:02:37.1]} 17... Bc7 {[%clk 0:02:50.9]}
18. Qe4 {[%clk 0:02:36.5]} 18... Rb8 {[%clk 0:02:49.3]} 19. Rac1 {[%clk
0:02:35.1]} 19... Rd8 {[%clk 0:02:45.1]} 20. Rfd1 {[%clk 0:01:59.5]} 20... b6
{[%clk 0:02:44.4]} 21. Qf4 {[%clk 0:01:58.1]} 21... Bb7 {[%clk 0:02:42.6]} 22.
Ng5 {[%clk 0:01:57.4]} 22... h6 {[%clk 0:02:28.8]} 23. Qxf7+ {[%clk 0:01:53.4]}
23... Qxf7 {[%clk 0:02:26.1]} 24. Nxf7 {[%clk 0:01:55.3]} 24... Rd7 {[%clk
0:02:18.9]} 25. Bxg6 {[%clk 0:01:53.4]} 25... Rxd1+ {[%clk 0:02:15.7]} 26. Rxd1
{[%clk 0:01:55.3]} 26... Kg7 {[%clk 0:02:11.4]} 27. Rd7 {[%clk 0:01:53.3]} 27...
Kxg6 {[%clk 0:02:02]} 28. Rxc7 {[%clk 0:01:53.5]} 28... Bd5 {[%clk 0:01:56.8]}
29. Nd6 {[%clk 0:01:53]} 29... a5 {[%clk 0:01:56]} 30. b5 {[%clk 0:01:51.8]} 1-0

[Event "*** Titled Tuesday 3|2 Blitz"]
[Site "Chess.com"]
[Date "2016.09.06"]
[Round "1"]
[White "bilelou"]
[Black "DeviatkinAndrey"]
[Result "0-1"]
[WhiteElo "2267"]
[BlackElo "2590"]
[TimeControl "180+2"]
[EndTime "17:04:45 PDT"]
[Termination "DeviatkinAndrey won by resignation"]

1. d4 {[%clk 0:03:00.3]} 1... d5 {[%clk 0:03:00.6]} 2. c4 {[%clk 0:03:01.2]}
2... dxc4 {[%clk 0:03:00.2]} 3. Nf3 {[%clk 0:03:02.2]} 3... Nf6 {[%clk
0:03:00.6]} 4. e3 {[%clk 0:03:03]} 4... e6 {[%clk 0:02:59.8]} 5. Bxc4 {[%clk
0:03:04.1]} 5... c5 {[%clk 0:03:01.2]} 6. O-O {[%clk 0:03:04.6]} 6... Nc6 {[%clk
0:02:57.4]} 7. Qe2 {[%clk 0:03:03]} 7... cxd4 {[%clk 0:02:54.6]} 8. Rd1 {[%clk
0:03:03.6]} 8... Be7 {[%clk 0:02:55.8]} 9. exd4 {[%clk 0:03:04.2]} 9... O-O
{[%clk 0:02:45.9]} 10. Nc3 {[%clk 0:03:05.7]} 10... Nd5 {[%clk 0:02:41.5]} 11.
Bd2 {[%clk 0:02:48.3]} 11... Bf6 {[%clk 0:01:37.1]} 12. Qe4 {[%clk 0:02:34.9]}
12... Nce7 {[%clk 0:01:35]} 13. Rac1 {[%clk 0:02:27.1]} 13... b6 {[%clk
0:01:34.2]} 14. Bd3 {[%clk 0:02:26]} 14... g6 {[%clk 0:01:34.9]} 15. Qe2 {[%clk
0:01:57.3]} 15... Bb7 {[%clk 0:01:35.1]} 16. Ne4 {[%clk 0:01:58.4]} 16... Bg7
{[%clk 0:01:35.6]} 17. Ne5 {[%clk 0:01:49]} 17... Nf5 {[%clk 0:01:33.2]} 18. Bc3
{[%clk 0:01:50]} 18... Nf4 {[%clk 0:01:33.4]} 19. Qf3 {[%clk 0:01:49.5]} 19...
Nxd3 {[%clk 0:01:19.7]} 20. Qxd3 {[%clk 0:01:50.4]} 20... Bxe5 {[%clk
0:01:12.5]} 0-1

[Event "*** Titled Tuesday 3|2 Blitz"]
[Site "Chess.com"]
[Date "2016.09.06"]
[Round "1"]
[White "JustKid"]
[Black "dretch"]
[Result "0-1"]
[WhiteElo "2267"]
[BlackElo "2608"]
[TimeControl "180+2"]
[EndTime "17:04:48 PDT"]
[Termination "dretch won by resignation"]

1. d4 {[%clk 0:02:53.6]} 1... d5 {[%clk 0:03:00.2]} 2. c4 {[%clk 0:02:54.8]}
2... c6 {[%clk 0:03:01.1]} 3. cxd5 {[%clk 0:02:55.5]} 3... cxd5 {[%clk 0:03:02]}
4. Nc3 {[%clk 0:02:56.7]} 4... Nc6 {[%clk 0:03:03]} 5. Bf4 {[%clk 0:02:57.7]}
5... Nf6 {[%clk 0:03:00.8]} 6. e3 {[%clk 0:02:58.7]} 6... Bf5 {[%clk 0:02:57.2]}
7. Nf3 {[%clk 0:02:55.4]} 7... e6 {[%clk 0:02:54.8]} 8. Bd3 {[%clk 0:02:54.7]}
8... Bxd3 {[%clk 0:02:54.4]} 9. Qxd3 {[%clk 0:02:56.6]} 9... Be7 {[%clk
0:02:55.9]} 10. h3 {[%clk 0:02:56]} 10... O-O {[%clk 0:02:55.4]} 11. O-O {[%clk
0:02:56.6]} 11... Rc8 {[%clk 0:02:53.9]} 12. Ne5 {[%clk 0:02:57.1]} 12... Nxe5
{[%clk 0:02:53.5]} 13. Bxe5 {[%clk 0:02:59]} 13... Nd7 {[%clk 0:02:54.7]} 14.
Bg3 {[%clk 0:02:59.4]} 14... Qa5 {[%clk 0:02:50]} 15. a3 {[%clk 0:02:59.3]}
15... Rc4 {[%clk 0:02:41.9]} 16. Rac1 {[%clk 0:02:58.4]} 16... Rfc8 {[%clk
0:02:41.4]} 17. Na2 {[%clk 0:02:49.6]} 17... Rxc1 {[%clk 0:02:22.8]} 18. Nxc1
{[%clk 0:02:51.5]} 18... Qa4 {[%clk 0:02:20.1]} 19. Qb3 {[%clk 0:02:48.1]} 19...
Nb6 {[%clk 0:02:12.3]} 20. Qxa4 {[%clk 0:02:37.2]} 20... Nxa4 {[%clk 0:02:13.6]}
21. Nd3 {[%clk 0:02:39.1]} 21... Rc2 {[%clk 0:02:13.8]} 22. Rb1 {[%clk
0:02:35.7]} 22... Rd2 {[%clk 0:02:08.8]} 23. Nc5 {[%clk 0:02:20.7]} 23... Rxb2
{[%clk 0:02:07.7]} 24. Rxb2 {[%clk 0:02:19.7]} 24... Nxb2 {[%clk 0:02:08.6]} 25.
Nxb7 {[%clk 0:02:21]} 25... Bxa3 {[%clk 0:02:03.7]} 26. Bb8 {[%clk 0:02:15.3]}
26... a6 {[%clk 0:02:04.6]} 27. Na5 {[%clk 0:02:12.7]} 27... Nc4 {[%clk
0:01:56.9]} 28. Nb3 {[%clk 0:02:10.3]} 28... Kf8 {[%clk 0:01:53.3]} 29. Kf1
{[%clk 0:02:10]} 29... Ke8 {[%clk 0:01:54.2]} 30. Ke2 {[%clk 0:02:10.6]} 30...
Kd7 {[%clk 0:01:55.3]} 31. Nd2 {[%clk 0:02:08.5]} 31... Nxd2 {[%clk 0:01:51.8]}
32. Kxd2 {[%clk 0:02:10.4]} 32... Bd6 {[%clk 0:01:53.1]} 33. Ba7 {[%clk
0:02:10.6]} 33... Kc6 {[%clk 0:01:53.8]} 34. Kc3 {[%clk 0:02:05]} 34... Kb7
{[%clk 0:01:54.9]} 35. Bc5 {[%clk 0:02:06]} 35... Bxc5 {[%clk 0:01:56.1]} 36.
dxc5 {[%clk 0:02:07.9]} 36... Kc6 {[%clk 0:01:57.3]} 37. Kb4 {[%clk 0:02:09.8]}
37... e5 {[%clk 0:01:57.4]} 38. g3 {[%clk 0:02:09.2]} 38... a5+ {[%clk
0:01:57.1]} 39. Kxa5 {[%clk 0:02:10.1]} 39... Kxc5 {[%clk 0:01:58.8]} 0-1

[Event "*** Titled Tuesday 3|2 Blitz"]
[Site "Chess.com"]
[Date "2016.09.06"]
[Round "1"]
[White "Kouzari"]
[Black "DavidForthoffer"]
[Result "1-0"]
[WhiteElo "2463"]
[BlackElo "2063"]
[TimeControl "180+2"]
[EndTime "17:04:56 PDT"]
[Termination "Kouzari won by resignation"]

1. d4 {[%clk 0:03:00.1]} 1... c6 {[%clk 0:03:01.2]} 2. c4 {[%clk 0:03:01.4]}
2... d5 {[%clk 0:03:02.8]} 3. Nc3 {[%clk 0:03:03.3]} 3... e5 {[%clk 0:03:02.7]}
4. cxd5 {[%clk 0:03:03]} 4... cxd5 {[%clk 0:03:03.8]} 5. Nf3 {[%clk 0:02:59.7]}
5... exd4 {[%clk 0:03:04.3]} 6. Nxd4 {[%clk 0:03:00.8]} 6... Nf6 {[%clk
0:03:05.2]} 7. g3 {[%clk 0:03:02.2]} 7... Nc6 {[%clk 0:03:01.3]} 8. Bg2 {[%clk
0:03:02.6]} 8... Nxd4 {[%clk 0:03:01.2]} 9. Qxd4 {[%clk 0:03:03]} 9... Be6
{[%clk 0:03:01.6]} 10. O-O {[%clk 0:02:55.2]} 10... Be7 {[%clk 0:03:02.8]} 11.
Qa4+ {[%clk 0:02:56]} 11... Qd7 {[%clk 0:03:03.5]} 12. Qxd7+ {[%clk 0:02:55.1]}
12... Kxd7 {[%clk 0:03:04.2]} 13. Bg5 {[%clk 0:02:53.7]} 13... Rhd8 {[%clk
0:03:00.6]} 14. Bxf6 {[%clk 0:02:47.8]} 14... Bxf6 {[%clk 0:03:01.3]} 15. Nxd5
{[%clk 0:02:48.3]} 15... Bxb2 {[%clk 0:03:00]} 16. Rab1 {[%clk 0:02:48.5]} 16...
Be5 {[%clk 0:02:49.1]} 17. Rxb7+ {[%clk 0:02:46.2]} 17... Ke8 {[%clk 0:02:50.3]}
18. Nc7+ {[%clk 0:02:36.3]} 18... Bxc7 {[%clk 0:02:47.3]} 19. Rxc7 {[%clk
0:02:38.2]} 19... Rac8 {[%clk 0:02:39.6]} 20. Rxa7 {[%clk 0:02:37]} 20... Rc2
{[%clk 0:02:39.8]} 21. a4 {[%clk 0:02:16.9]} 21... Rxe2 {[%clk 0:02:39.6]} 22.
a5 {[%clk 0:02:16.8]} 22... Ra2 {[%clk 0:02:37]} 23. Rb1 {[%clk 0:02:11.7]}
23... g6 {[%clk 0:02:35]} 24. h4 {[%clk 0:02:07.3]} 24... h5 {[%clk 0:02:35.1]}
25. a6 {[%clk 0:02:08]} 25... Kf8 {[%clk 0:02:28]} 26. Bf1 {[%clk 0:02:00.8]}
26... Rdd2 {[%clk 0:02:27.3]} 27. Ra8+ {[%clk 0:01:49.6]} 27... Kg7 {[%clk
0:02:27.5]} 28. a7 {[%clk 0:01:43.6]} 28... Bd5 {[%clk 0:02:23.6]} 29. Rd8
{[%clk 0:01:43.7]} 29... Rxa7 {[%clk 0:02:21.7]} 30. Rb5 {[%clk 0:01:44.4]}
30... Bc6 {[%clk 0:02:06.9]} 31. Rxd2 {[%clk 0:01:43.7]} 31... Bxb5 {[%clk
0:02:08]} 32. Bxb5 {[%clk 0:01:43.6]} 32... Re7 {[%clk 0:02:07.1]} 1-0

[Event "*** Titled Tuesday 3|2 Blitz"]
[Site "Chess.com"]
[Date "2016.09.06"]
[Round "1"]
[White "SidArun"]
[Black "matein28"]
[Result "1/2-1/2"]
[WhiteElo "2004"]
[BlackElo "2358"]
[TimeControl "180+2"]
[EndTime "17:05:51 PDT"]
[Termination "Game drawn by repetition"]

1. e4 {[%clk 0:03:00.4]} 1... d5 {[%clk 0:03:01.3]} 2. exd5 {[%clk 0:03:00.7]}
2... Qxd5 {[%clk 0:03:02.9]} 3. Nf3 {[%clk 0:03:02.3]} 3... Nf6 {[%clk
0:03:03.6]} 4. d4 {[%clk 0:03:03.3]} 4... Bf5 {[%clk 0:03:04.3]} 5. c4 {[%clk
0:03:04]} 5... Qa5+ {[%clk 0:03:04.9]} 6. Nc3 {[%clk 0:03:04.6]} 6... c6 {[%clk
0:03:06.2]} 7. Bd2 {[%clk 0:03:04.3]} 7... Qc7 {[%clk 0:03:04.6]} 8. Qb3 {[%clk
0:03:04.2]} 8... e6 {[%clk 0:03:05.9]} 9. g3 {[%clk 0:02:59.3]} 9... Nbd7 {[%clk
0:03:06.4]} 10. c5 {[%clk 0:02:58.2]} 10... Nd5 {[%clk 0:03:04.6]} 11. Nxd5
{[%clk 0:02:58.9]} 11... exd5 {[%clk 0:03:05.6]} 12. Bf4 {[%clk 0:02:59.7]}
12... Qc8 {[%clk 0:03:05.9]} 13. O-O-O {[%clk 0:02:53.2]} 13... Be7 {[%clk
0:03:03.7]} 14. Re1 {[%clk 0:02:53.7]} 14... Be6 {[%clk 0:03:02.4]} 15. Bd3
{[%clk 0:02:39.7]} 15... O-O {[%clk 0:02:59.5]} 16. h4 {[%clk 0:02:39.7]} 16...
b6 {[%clk 0:02:57.9]} 17. Qc2 {[%clk 0:02:34.1]} 17... h5 {[%clk 0:02:32.8]} 18.
Ng5 {[%clk 0:02:14.7]} 18... Nf6 {[%clk 0:02:02.2]} 19. Be5 {[%clk 0:01:51]}
19... bxc5 {[%clk 0:01:54.4]} 20. f4 {[%clk 0:01:39.5]} 20... Bg4 {[%clk
0:01:44.8]} 21. dxc5 {[%clk 0:01:34.1]} 21... Qd7 {[%clk 0:01:15]} 22. Be2
{[%clk 0:01:07.7]} 22... Bf5 {[%clk 0:01:05.2]} 23. Bd3 {[%clk 0:01:08.3]} 23...
Bg4 {[%clk 0:00:57.1]} 24. Be2 {[%clk 0:01:07.3]} 24... Bf5 {[%clk 0:00:58]} 25.
Bd3 {[%clk 0:01:08.1]} 25... Bg4 {[%clk 0:00:58.4]} 1/2-1/2

[Event "*** Titled Tuesday 3|2 Blitz"]
[Site "Chess.com"]
[Date "2016.09.06"]
[Round "1"]
[White "Yaacovn"]
[Black "ZEN-22"]
[Result "1-0"]
[WhiteElo "2627"]
[BlackElo "2282"]
[TimeControl "180+2"]
[EndTime "17:06:24 PDT"]
[Termination "Yaacovn won by checkmate"]

1. d4 {[%clk 0:01:16.7]} 1... d6 {[%clk 0:03:00.3]} 2. Nf3 {[%clk 0:01:17.6]}
2... Nf6 {[%clk 0:03:01.8]} 3. e3 {[%clk 0:01:18.6]} 3... c5 {[%clk 0:03:02.3]}
4. Be2 {[%clk 0:01:18.4]} 4... Nc6 {[%clk 0:03:02.7]} 5. O-O {[%clk 0:01:18.3]}
5... e6 {[%clk 0:03:03.8]} 6. dxc5 {[%clk 0:01:18.8]} 6... d5 {[%clk 0:03:05.2]}
7. c4 {[%clk 0:01:19.1]} 7... Bxc5 {[%clk 0:03:06.4]} 8. Nc3 {[%clk 0:01:19.7]}
8... d4 {[%clk 0:03:06.6]} 9. Na4 {[%clk 0:01:20.1]} 9... b6 {[%clk 0:03:07.3]}
10. Nxc5 {[%clk 0:01:18.7]} 10... bxc5 {[%clk 0:03:08.3]} 11. exd4 {[%clk
0:01:17.6]} 11... cxd4 {[%clk 0:03:07.4]} 12. b4 {[%clk 0:01:18.3]} 12... d3
{[%clk 0:02:57.5]} 13. Bxd3 {[%clk 0:01:17.7]} 13... Nxb4 {[%clk 0:02:58.6]} 14.
Qa4+ {[%clk 0:01:18.1]} 14... Qd7 {[%clk 0:02:57.8]} 15. Qxb4 {[%clk 0:01:19]}
15... Qxd3 {[%clk 0:02:58.7]} 16. Ba3 {[%clk 0:01:19.8]} 16... Qd7 {[%clk
0:02:52.2]} 17. Rfd1 {[%clk 0:01:20.3]} 17... Qc7 {[%clk 0:02:53.4]} 18. Ne5
{[%clk 0:01:20]} 18... a5 {[%clk 0:02:48.2]} 19. Qa4+ {[%clk 0:01:20.5]} 19...
Nd7 {[%clk 0:02:49.8]} 20. Bd6 {[%clk 0:01:15.9]} 20... Qa7 {[%clk 0:02:49.5]}
21. c5 {[%clk 0:01:14]} 21... f6 {[%clk 0:02:48.7]} 22. Nc6 {[%clk 0:01:03.5]}
22... Qa6 {[%clk 0:02:48.7]} 23. Ne7 {[%clk 0:00:54]} 23... Kf7 {[%clk
0:02:43.1]} 24. c6 {[%clk 0:00:54]} 24... Nb6 {[%clk 0:02:42.1]} 25. Qd4 {[%clk
0:00:52.6]} 25... e5 {[%clk 0:02:41.1]} 26. Qc5 {[%clk 0:00:51.4]} 26... Be6
{[%clk 0:02:41.9]} 27. Rab1 {[%clk 0:00:51.5]} 27... Nc8 {[%clk 0:02:42.7]} 28.
Rb7 {[%clk 0:00:47.5]} 28... Nxd6 {[%clk 0:02:42.3]} 29. Qxd6 {[%clk 0:00:44.2]}
29... Rhd8 {[%clk 0:02:41.8]} 30. Nc8+ {[%clk 0:00:38.4]} 30... Qxb7 {[%clk
0:02:37.3]} 31. cxb7 {[%clk 0:00:36.5]} 31... Raxc8 {[%clk 0:02:37.2]} 32.
bxc8=Q {[%clk 0:00:35.2]} 32... Rxd6 {[%clk 0:02:38.5]} 33. Qc7+ {[%clk
0:00:29.4]} 33... Rd7 {[%clk 0:02:38.6]} 34. Rxd7+ {[%clk 0:00:29.9]} 34... Kg6
{[%clk 0:02:40.5]} 35. Rxg7+ {[%clk 0:00:23.2]} 35... Kf5 {[%clk 0:02:42.4]} 36.
Qc2+ {[%clk 0:00:20.8]} 36... e4 {[%clk 0:02:43.8]} 37. Qd2 {[%clk 0:00:19.8]}
37... h5 {[%clk 0:02:42.4]} 38. Qe3 {[%clk 0:00:18.5]} 38... Ke5 {[%clk
0:02:44.3]} 39. Qc5+ {[%clk 0:00:18]} 39... Bd5 {[%clk 0:02:45]} 40. Re7+ {[%clk
0:00:18.4]} 40... Kf4 {[%clk 0:02:45.1]} 41. Qxd5 {[%clk 0:00:18.9]} 41... e3
{[%clk 0:02:45.4]} 42. fxe3+ {[%clk 0:00:16.1]} 42... Kg4 {[%clk 0:02:46.3]} 43.
Re4# {[%clk 0:00:13.8]} 1-0

[Event "*** Titled Tuesday 3|2 Blitz"]
[Site "Chess.com"]
[Date "2016.09.06"]
[Round "1"]
[White "Lapitch"]
[Black "hermionegrangermagic"]
[Result "1-0"]
[WhiteElo "2577"]
[BlackElo "2248"]
[TimeControl "180+2"]
[EndTime "17:06:26 PDT"]
[Termination "Lapitch won by resignation"]

1. Nf3 {[%clk 0:03:00.6]} 1... d5 {[%clk 0:02:59.5]} 2. c4 {[%clk 0:02:58.6]}
2... e6 {[%clk 0:02:59]} 3. g3 {[%clk 0:02:58.5]} 3... Nf6 {[%clk 0:02:58.8]} 4.
Bg2 {[%clk 0:03:00.4]} 4... Be7 {[%clk 0:02:59.3]} 5. O-O {[%clk 0:03:01.7]}
5... O-O {[%clk 0:02:59.7]} 6. b3 {[%clk 0:03:03.1]} 6... c5 {[%clk 0:02:49.7]}
7. Bb2 {[%clk 0:03:02.8]} 7... Nc6 {[%clk 0:02:45.2]} 8. e3 {[%clk 0:03:02.9]}
8... d4 {[%clk 0:02:45.1]} 9. exd4 {[%clk 0:03:02.5]} 9... cxd4 {[%clk
0:02:43.7]} 10. Re1 {[%clk 0:03:03.9]} 10... Bd6 {[%clk 0:02:22.1]} 11. d3
{[%clk 0:02:48.7]} 11... e5 {[%clk 0:02:04.8]} 12. Nbd2 {[%clk 0:02:47.5]} 12...
Bf5 {[%clk 0:02:00.8]} 13. c5 {[%clk 0:02:42.7]} 13... Bc7 {[%clk 0:01:49.7]}
14. Nc4 {[%clk 0:02:42.3]} 14... Re8 {[%clk 0:01:37.9]} 15. a3 {[%clk
0:02:40.7]} 15... Bg4 {[%clk 0:01:22.2]} 16. h3 {[%clk 0:02:37.3]} 16... Bh5
{[%clk 0:01:21.6]} 17. b4 {[%clk 0:02:35.4]} 17... a6 {[%clk 0:01:14.7]} 18. Qc2
{[%clk 0:02:22.6]} 18... Nd5 {[%clk 0:01:09]} 19. Nfd2 {[%clk 0:02:17.3]} 19...
Bg6 {[%clk 0:01:08.8]} 20. Ne4 {[%clk 0:02:16.5]} 20... Qd7 {[%clk 0:00:57.1]}
21. Qb3 {[%clk 0:01:55.9]} 21... Bxe4 {[%clk 0:00:54.8]} 22. Bxe4 {[%clk
0:01:54.8]} 22... Nf6 {[%clk 0:00:55.6]} 23. Bg2 {[%clk 0:01:55.9]} 23... Qe6
{[%clk 0:00:55.3]} 24. Nd2 {[%clk 0:01:52.4]} 24... Qxb3 {[%clk 0:00:54.5]} 25.
Nxb3 {[%clk 0:01:54.3]} 25... Re7 {[%clk 0:00:51.1]} 26. Nd2 {[%clk 0:01:53.4]}
26... Rae8 {[%clk 0:00:50.8]} 27. Rac1 {[%clk 0:01:47.9]} 27... g6 {[%clk
0:00:49.4]} 28. Rc2 {[%clk 0:01:46.7]} 28... Nd7 {[%clk 0:00:49.8]} 29. Nc4
{[%clk 0:01:39.2]} 29... f5 {[%clk 0:00:49.7]} 30. Nd6 {[%clk 0:01:37.9]} 30...
Rd8 {[%clk 0:00:47.8]} 31. Nxb7 {[%clk 0:01:38.3]} 1-0

[Event "*** Titled Tuesday 3|2 Blitz"]
[Site "Chess.com"]
[Date "2016.09.06"]
[Round "1"]
[White "cheese111"]
[Black "Elshan1985"]
[Result "0-1"]
[WhiteElo "2252"]
[BlackElo "2578"]
[TimeControl "180+2"]
[EndTime "17:07:00 PDT"]
[Termination "Elshan1985 won on time"]

1. e4 {[%clk 0:02:53.7]} 1... c5 {[%clk 0:03:00.4]} 2. Nf3 {[%clk 0:02:54.7]}
2... e6 {[%clk 0:03:00.7]} 3. g3 {[%clk 0:02:54.3]} 3... b6 {[%clk 0:02:57.7]}
4. Bg2 {[%clk 0:02:53.1]} 4... Bb7 {[%clk 0:02:59.2]} 5. Qe2 {[%clk 0:02:52.4]}
5... Nf6 {[%clk 0:02:58.2]} 6. Nc3 {[%clk 0:02:47]} 6... d5 {[%clk 0:02:53.5]}
7. exd5 {[%clk 0:02:37.9]} 7... Nxd5 {[%clk 0:02:54]} 8. O-O {[%clk 0:02:38.3]}
8... Be7 {[%clk 0:02:51.4]} 9. Rd1 {[%clk 0:02:05.7]} 9... O-O {[%clk
0:02:47.1]} 10. Nxd5 {[%clk 0:02:05.5]} 10... Qxd5 {[%clk 0:02:39.3]} 11. d4
{[%clk 0:01:41.2]} 11... Qe4 {[%clk 0:02:38]} 12. Be3 {[%clk 0:01:22.8]} 12...
Qg4 {[%clk 0:02:16.9]} 13. dxc5 {[%clk 0:01:10.1]} 13... Bxc5 {[%clk 0:02:04]}
14. Bxc5 {[%clk 0:01:04.9]} 14... bxc5 {[%clk 0:02:04.8]} 15. Nd4 {[%clk
0:00:45.5]} 15... Qxe2 {[%clk 0:02:04.6]} 16. Nxe2 {[%clk 0:00:47.4]} 16... Bxg2
{[%clk 0:02:01.4]} 17. Kxg2 {[%clk 0:00:49.3]} 17... Nc6 {[%clk 0:02:02.4]} 18.
Rd7 {[%clk 0:00:41.1]} 18... Rfc8 {[%clk 0:01:56.6]} 19. Rad1 {[%clk 0:00:32.5]}
19... a5 {[%clk 0:01:57]} 20. Rb7 {[%clk 0:00:23.9]} 20... a4 {[%clk 0:01:54.3]}
21. Rdd7 {[%clk 0:00:20.5]} 21... Ne5 {[%clk 0:01:50.2]} 22. Re7 {[%clk
0:00:19.7]} 22... Rcb8 {[%clk 0:01:43.9]} 23. f4 {[%clk 0:00:15.5]} 23... Rxb7
{[%clk 0:01:44.9]} 24. Rxb7 {[%clk 0:00:16.5]} 24... Nc4 {[%clk 0:01:46.5]} 25.
Kf3 {[%clk 0:00:12.3]} 25... h5 {[%clk 0:01:39.3]} 26. b3 {[%clk 0:00:10.7]}
26... Na3 {[%clk 0:01:36.7]} 27. c4 {[%clk 0:00:09.9]} 27... Nc2 {[%clk
0:01:33.5]} 28. Nc3 {[%clk 0:00:08.3]} 28... axb3 {[%clk 0:01:31.5]} 29. axb3
{[%clk 0:00:06.2]} 29... Nd4+ {[%clk 0:01:26.8]} 30. Ke4 {[%clk 0:00:07.1]}
30... Ra3 {[%clk 0:01:17.3]} 0-1